Cogmind - Beta 9.6 @@@ ROGUE MODE // 2020.07.25 @ 14:28:31 Player: Sysandra Result: Self-destructed Performance ------------- Evolutions (1) 500 Regions Visited (2) 400 Robots Destroyed (9) 45 Value Destroyed (207) 207 Prototype IDs (0) 0 Alien Tech Used (0) 0 Bonus (0) 0 TOTAL SCORE: 1152 Bonus ------- None Cogmind --------- Core Integrity 263/400 Matter 300/300 Energy 17/100 System Corruption 0% Temperature Cool (1) Movement Hovering (60) Location -9/Materials Parts ------- > --- POWER (1) -------- (None) > --- PROPULSION (3) --- Hover Unit > --- UTILITY (3) ------ Small Storage Unit > --- WEAPON (2) ------- (None) > --- INVENTORY (6) ---- Light Ion Engine Light Ion Engine Hover Unit Sensor Array Peak State ------------ > --- POWER ------------ Light Ion Engine > --- PROPULSION ------- Compact Wheel Compact Wheel > --- UTILITY ---------- Small Storage Unit Improved Terrain Scanner > --- WEAPON ----------- Particle Cannon Particle Cannon > --- INVENTORY -------- Light Ion Engine Disposable Heat Sink Disposable Heat Sink Improved Terrain Scanner Particle Cannon Particle Cannon [Rating: 11] Favorites ----------- Power Light Ion Engine Engine Light Ion Engine Propulsion Hover Unit Wheel Compact Wheel Hover Unit Hover Unit Utility Small Storage Unit Device Improved Terrain Scanner Storage Small Storage Unit Weapon Particle Cannon Energy Gun Beam Rifle Energy Cannon Particle Cannon Ballistic Gun Light Assault Rifle Build | -11 -10 -9 ------- Run | Scr Mat Mat Slots Evolved 2 | . . 2 Power . | . . . Propulsion 1 | . . 1 Utility 1 | . . 1 Weapon . | . . . Parts Attached 19 | 6 6 7 Power 1 | 1 . . Engine 1 | 1 . . Core . | . . . Reactor . | . . . Propulsion 6 | 2 2 2 Treads . | . . . Leg . | . . . Wheel 2 | 2 . . Hover 4 | . 2 2 Flight . | . . . Utility 2 | 1 1 . Device 1 | . 1 . Storage 1 | 1 . . Processor . | . . . Hackware . | . . . Protection . | . . . Artifact . | . . . Weapon 10 | 2 3 5 Energy Gun 5 | . 1 4 Energy Cannon 3 | . 2 1 Ballistic Gun 2 | 2 . . Ballistic Cannon . | . . . Launcher . | . . . Special Weapon . | . . . Impact Weapon . | . . . Slashing Weapon . | . . . Piercing Weapon . | . . . Special Melee Weapon . | . . . Unidentified Prototypes . | . . . Parts Lost 8 | . 1 7 Power 1 | . . 1 Propulsion 1 | . . 1 Utility 1 | . . 1 Weapon 5 | . 1 4 Highest Loss Streak 6 | . 1 6 Average Slot Usage (%) 83 | . 93 72 Engine 12 | . 14 10 Wheel 12 | . 25 . Hover 14 | . 1 26 Device 10 | . 10 10 Storage 12 | . 14 11 Energy Gun 8 | . 6 11 Energy Cannon 8 | . 14 3 Ballistic Gun 2 | . 5 . Naked Turns . | . . . Heaviest Build 16 | 9 16 14 Greatest Support 32 | 32 32 18 Greatest Overweight (x) 1 | . . 1 Average Overweight (x) . | . . . Largest Inventory Capacity 6 | 6 6 6 Average Capacity 5 | 5 6 6 Most Carried 6 | 4 6 6 Average Carried 5 | 2 5 5 Final Capacity 6 | 6 6 6 Final Carried 6 | 2 6 4 Class Distribution -------------------- 100% | Mutant Dominant Class ---------------- Mutant | -10/Materials Mutant | -9/Materials Resources | -11 -10 -9 ----------- Run | Scr Mat Mat Matter Collected 375 | 247 73 55 Remotely . | . . . Salvage Created 228 | . 84 144 Parts 18 | . 9 9 Haulers Intercepted . | . . . Recyclers Shooed . | . . . Parts Field Recycled . | . . . Retrieved Matter . | . . . Parts Self-Destructed . | . . . Prevented . | . . . Kills | -11 -10 -9 ------- Run | Scr Mat Mat Combat Hostiles Destroyed 5 | . 1 4 Guns 4 | . . 4 Cannons 1 | . 1 . Classes Destroyed 5 | . 3 2 Operator 3 | . 2 1 Watcher 1 | . 1 . Swarmer 2 | . . 2 Grunt 2 | . 1 1 Sentry 1 | . . 1 Best Kill Streak 2 | . 2 2 Combat Bots Only 2 | . 1 2 Max Kills in Single Turn 1 | . 1 1 Gunslinging . | . . . Exploded . | . . . Melee . | . . . Uniques/NPCs Destroyed . | . . . Combat | -11 -10 -9 -------- Run | Scr Mat Mat Damage Taken 642 | . 141 501 Core 169 | . 32 137 Absorbed by Shields . | . . . Core Remaining (%) 93 | 100 87 . Volleys Fired 37 | . 11 26 Largest 2 | . 2 2 Hottest 118 | . 118 112 Shots Fired 56 | . 22 34 Gun 45 | . 11 34 Cannon 11 | . 11 . Launcher . | . . . Special . | . . . Kinetic . | . . . Thermal 52 | . 22 30 Explosive . | . . . Electromagnetic 4 | . . 4 Robot Hit Streak 5 | . 3 5 Robot Miss Streak 3 | . 2 3 Penetration Max . | . . . Secondary Targets . | . . . Shots Hit Robots 31 | . 11 20 Core Hits 13 | . 6 7 Critical Hits . | . . . Critical Kills . | . . . Critical Parts Destroyed . | . . . Melee Attacks . | . . . Impact . | . . . Slashing . | . . . Piercing . | . . . Sneak Attacks . | . . . Combat Hostiles . | . . . Follow-up Attacks . | . . . Damage Inflicted 396 | . 166 230 Guns 293 | . 63 230 Cannons 103 | . 103 . Explosions . | . . . Melee . | . . . Ramming . | . . . Kinetic . | . . . Thermal 354 | . 166 188 Explosive . | . . . Electromagnetic 42 | . . 42 Impact . | . . . Slashing . | . . . Piercing . | . . . Highest Corruption . | . . . Average Corruption . | . . . Corruption Purged . | . . . Overload Shots . | . . . Overflow Damage 6 | . 6 . Projectiles 6 | . 6 . Explosions . | . . . Melee . | . . . Knockbacks . | . . . Impact . | . . . Kinetic . | . . . Secondary . | . . . Self-Inflicted Damage . | . . . Shots . | . . . Rammed . | . . . Targets Rammed . | . . . Kicked . | . . . Crushed . | . . . Highest Temperature 333 | . 333 255 Average Temperature 102 | . 129 83 Received Heat Transfer 207 | . 69 138 Siege Activations . | . . . Robots Corrupted . | . . . Combat Hostiles . | . . . Parts Fried . | . . . Impact Corruptions . | . . . Robots Melted . | . . . Combat Hostiles . | . . . Parts Melted . | . . . Heat Transferred 851 | . 370 481 Parts Sabotaged . | . . . Parts Stolen . | . . . Parts Stripped . | . . . Power Chain Reactions . | . . . Missiles Intercepted . | . . . Alert | -11 -10 -9 ------- Run | Scr Mat Mat Peak Influence 112 | . 96 112 Average Influence 27 | . 20 40 Maximum Alert Level . | . . . Low Security (%) 100 | 100 100 100 Level 1 . | . . . Level 2 . | . . . Level 3 . | . . . Level 4 . | . . . Level 5 . | . . . High Security . | . . . Max Security . | . . . Squads Dispatched 5 | . 2 3 Investigation 2 | . 1 1 Extermination . | . . . Reinforcement 3 | . 1 2 Assault . | . . . Garrison . | . . . Intercept . | . . . Construction Impeded . | . . . Haulers Reinforced . | . . . Stealth | -11 -10 -9 --------- Run | Scr Mat Mat Distress Signals 1 | . . 1 Communications Jammed . | . . . Distress Signals . | . . . Times Spotted 24 | . 10 14 Peak Tracking Total 7 | . 7 5 Tactical Retreats 4 | . 1 3 Traps | -11 -10 -9 ------- Run | Scr Mat Mat Traps Triggered 2 | . 1 1 Indirectly . | . . . Trap Hack Attempts . | . . . Triggered . | . . . Disarmed . | . . . Reprogrammed . | . . . Reused . | . . . Traps Extracted . | . . . Installed . | . . . Triggered . | . . . Machines | -11 -10 -9 ---------- Run | Scr Mat Mat Machines Disabled 1 | . 1 . Max in Single Turn 1 | . 1 . Machines Sabotaged . | . . . Garrisons Compromised . | . . . Overloaded Fab Kills . | . . . Fab Network Shutdowns . | . . . Hacking | -11 -10 -9 --------- Run | Scr Mat Mat Machines Accessed 6 | . 3 3 Terminals 4 | . 2 2 Fabricators . | . . . Repair Stations 1 | . . 1 Recycling Units 1 | . 1 . Scanalyzers . | . . . Garrison Access . | . . . Total Hacks 21 | . 9 12 Successful 16 | . 6 10 Failed 5 | . 3 2 Catastrophic . | . . . Database Lockouts . | . . . Manual . | . . . Terminals 18 | . 8 10 Fabricators . | . . . Repair Stations 2 | . . 2 Recycling Units 1 | . 1 . Scanalyzers . | . . . Garrison Access . | . . . Terminal Hacks 13 | . 5 8 Record 4 | . 1 3 Terminal Index 1 | . . 1 Alert Level 2 | . 1 1 Unreport Threat 1 | . 1 . Dispatch Records 2 | . 1 1 Maintenance Status 1 | . 1 . Transport Status 1 | . . 1 Zone Layout 1 | . . 1 Fabricator Hacks . | . . . Repair Station Hacks 2 | . . 2 Scan Component 1 | . . 1 Repair 1 | . . 1 Recycling Unit Hacks 1 | . 1 . Report Inventory 1 | . 1 . Scanalyzer . | . . . Garrison Access Hacks . | . . . Unauthorized Hacks . | . . . Terminals . | . . . Fabricators . | . . . Repair Stations . | . . . Recycling Units . | . . . Scanalyzers . | . . . Garrison Access . | . . . Data Cores Recovered . | . . . Used . | . . . Hacking Detections 2 | . 2 . Full Trace Events . | . . . Feedback Events . | . . . Feedback Blocked . | . . . Robot Schematics Acquired . | . . . Robots Built . | . . . Matter . | . . . Time . | . . . Total Robot Build Rating . | . . . Part Schematics Acquired . | . . . Parts Built . | . . . Matter . | . . . Time . | . . . Total Part Build Rating . | . . . Parts Repaired 1 | . . 1 Time 26 | . . 26 Parts Recycled . | . . . Recycled Matter . | . . . Retrieved Matter . | . . . Retrieved Components . | . . . Parts Scanalyzed . | . . . Part Schematics Acquired . | . . . Parts Damaged . | . . . Bothacking | -11 -10 -9 ------------ Run | Scr Mat Mat Used RIF Installer . | . . . Robots Hacked . | . . . Non-combat . | . . . Combat . | . . . Robot Hacks Applied . | . . . Relay Couplers Released . | . . . Robots Rewired . | . . . Allies Hacked . | . . . Hacks Repelled . | . . . Allies | -11 -10 -9 -------- Run | Scr Mat Mat Total Allies . | . . . Largest Group . | . . . Highest-Rated Group . | . . . Highest-Rated Ally . | . . . Total Orders . | . . . Ally Attacks . | . . . Total Damage . | . . . Kills . | . . . Allies Corrupted . | . . . Allies Melted . | . . . Intel | -11 -10 -9 ------- Run | Scr Mat Mat Robot Analysis Total . | . . . Derelict Logs Recovered . | . . . Drone Launches . | . . . Drone Recoveries . | . . . Exploration | -11 -10 -9 ------------- Run | Scr Mat Mat Turns Passed 648 | 65 293 290 Spaces Moved 577 | 59 244 274 Core 15 | 15 . . Treads . | . . . Legs . | . . . Wheels 248 | 44 204 . Hover 314 | . 40 274 Flight . | . . . Fastest Speed 50 | 50 56 52 Average Speed 77 | 87 92 62 Slowest Speed 120 | 100 100 120 Overloaded Moves . | . . . Propulsion Burnouts . | . . . Robots Hopped . | . . . Cave-ins Triggered . | . . . Exploration Rate (%) 22 | 3 34 30 Regions Visited 2 Branch Regions . Pre-discovered Areas . | . . . Known Exits Taken . | . . . Unknown Exits Taken 2 | 1 1 . Scrap Searched . | . . . Spaces Dug . | . . . Terrain Destroyed . | . . . Melee . | . . . Projectile . | . . . AOE . | . . . Actions | -11 -10 -9 --------- Run | Scr Mat Mat Total 731 | 72 297 362 Wait 43 | . . 43 Move 575 | 58 243 274 Hop . | . . . Pick Up 33 | 8 18 7 Fast Attach 1 | . 1 . Attach 18 | 6 5 7 Detach 5 | . 4 1 Swap . | . . . Drop 19 | . 15 4 Fire 37 | . 11 26 Melee . | . . . Ram . | . . . Kick . | . . . Crush . | . . . Escape Stasis . | . . . Rewire . | . . . Trap . | . . . Miscellaneous . | . . . Route ------- -11/Scrapyard -10/Materials -9/Materials (discovered 1 exit: [*Min]) History --------- Turn | Location | Event 24 | -11/Scrapyard | Discovered new exit (range 15) 66 | -11/Scrapyard | Entered Materials 351 | -10/Materials | Discovered new exit (range 16) 359 | -10/Materials | Entered another Materials area 359 | -9/Materials | Evolved 2 slots: Propulsion x1, Utility x1 382 | -9/Materials | Build established: Mutant 436 | -9/Materials | Repaired Hover Unit 443 | -9/Materials | Discovered new exit (range 12) 649 | -9/Materials | Self-destructed Last Messages --------------- 00588_ O-16 Technician: "IFF HANDSHAKE FAILED. SECURING TERMINAL." 00591_ O-16 Technician uses terminal to summon reinforcements. 00591_ ALERT: Hostiles spotted, dispatching reinforcements to Terminal M011. 00591_ O-16 Technician locks terminal. 00595_ O-16 Technician destroyed. 00601_ Dropped Hover Unit. 00601_ Acquired Hover Unit. 00614_ Beam Rifle destroyed. 00615_ ALERT: Hostiles spotted, dispatching reinforcements to Terminal M007. 00627_ Hover Unit destroyed. 00630_ Lgt. Ion Engine destroyed. 00638_ Processing Tank disabled. 00638_ Imp. Terrain Scanner destroyed. 00641_ Beam Rifle destroyed. 00643_ Y-45 Defender destroyed. 00644_ EM Pulse Gun destroyed. 00646_ Acquired 5 matter. 00648_ K-01 Serf collects debris. Map ----- +----------------------------------------------------+ | ???????????????????????????#########?# | | ??????????????#????????????# ! [?# | | ???????????????###########?# # | | ???????????????# #?? """ # | | ????########???# #???""""" + | | ???## #???# #???""""" # | | ????# #???# #????"""" ## ### | | ????# ##### #????""" ??# #?? | | ????# """ # ## ]#???? ??# #?? | | ????# """ # + #???######???# ##? | | ??#?# """ + ## #????????????# #?? | | ????######## #######+####?????????####+### | | ????# # ##### #???????????# # | | ????# T # #???????#???#!![ # | | ????# # T ###?????????#![ # | | ???## + ##### % #??????#????#![ # | | ????# # #???## ##???????????# # | | ????# # #????# #?????##?????# % # | | ???##+###### #?#??# #################+### | | ???# #????# #????# "= | | ???# #??#?# #????# ############## "% | | ???# #????# ##???# ##???????????## " | | ???# #?#?## ######+####??????????######## | | ???# ##### # %* #????????????#????? | | ???# # ! #?#???????##??????? | | ???# Y @ """#????#?????????#??? | | ???# ##### # ""#?????????#???????? | | ???# #??####### """#?????????????????? | | ???# #????????# """#?????????????????? | | ???####????????# """#??????????#??????? | | ?????????????#?# #?????????????????? | | ???????????????# #??????????#??????? | | ???????#???????##########?????????????????? | | ????????#??#?#????????????????????????????? | | | | | | | | | | | | | | | | | | | | | | | | | | | | | | | | | +----------------------------------------------------+ Best States ------------- Heat Dissipation 28 Energy Generation 10 Energy Capacity 125 Matter Stores 300 Matter Capacity 300 Sight Range 16 Terrain Scan Range 16 Terrain Scan Density 10 Evasion (%) 54 Item Schematics ----------------- None Robot Schematics ------------------ None Fabricated ------------ Nothing Alien Tech Used ----------------- None Achievements -------------- None Challenges ------------ None Game ------ Seed NodeMissileAxe Manual? 0 Play Time 00:23:54 Cumulative 22.0 hours Start 2020.07.25 @ 14:05:15 End 2020.07.25 @ 14:28:31 Sessions 1 Manual Loads 0 Difficulty Rogue Special Mode None Game No. 80 Rogue 80 Adventurer 0 Explorer 0 Win Type - Total 0 Types 0/0/0/0/0/0/0 Lore% 9 Gallery% 23 Achievement% 17 Wizard Run 0 Options --------- ASCII 0 Keyboard 1 Movement Numpad Keybinds 0 Fullscreen 2 Font 18/SmallcapsGlow Map View 76x50 Tactical HUD 1 Map Filters NONE Filters NONE Steam 1 RUN: 76585397-1dd2-4366-9799-e8ef6b27a4df